fUST/lending_fUST_20250122
["ID","MTS","AMOUNT","RATE_DAILY","PERIOD"]
[349903688,1737487845654,-500.0,0.00021917,3]
[349903689,1737487845663,-500.0,0.00021917,3]
[349903690,1737487845674,-500.0,0.00021917,3]
[349903691,1737487845683,-500.0,0.00021917,3]
[349903692,1737487845692,-500.0,0.00021917,3]
[349903693,1737487845702,-500.0,0.00021917,3]
[349903694,1737487845711,-500.0,0.00021917,3]
[349903695,1737487845721,-2114.02,0.00021917,3]
[349903696,1737487845731,-500.0,0.00021917,3]
[349903697,1737487845740,-582.92,0.00021917,3]
[349903698,1737487845749,-2823.41,0.00021917,3]
[349903699,1737487845759,-500.0,0.00021917,3]
[349903700,1737487845768,-520.83,0.00021917,3]
[349903701,1737487845777,-500.0,0.00021917,3]
[349903702,1737487845786,-7051.4,0.00021917,3]
[349903703,1737487845795,-500.0,0.00021917,3]
[349903704,1737487845805,-500.0,0.00021917,3]
[349903705,1737487845814,-500.0,0.00021917,3]
[349903706,1737487845824,-500.0,0.00021917,3]
[349903707,1737487845833,-500.0,0.00021917,3]
[349903708,1737487845843,-500.0,0.00021917,3]
[349903709,1737487845852,-500.0,0.00021917,3]
[349903710,1737487845862,-500.0,0.00021917,3]
[349903711,1737487845871,-1179.1,0.00021917,3]
[349903712,1737487845880,-603.08,0.00021917,3]
[349903713,1737487845890,-500.0,0.00021917,3]
[349903714,1737487845899,-1261.81,0.00021917,3]
[349903715,1737487845908,-500.0,0.00021917,3]
[349903716,1737487845917,-500.0,0.00021917,3]
[349903717,1737487845928,-500.0,0.00021917,3]
[349903718,1737487845937,-823.46,0.00021917,3]
[349903719,1737487845947,-500.0,0.00021917,3]
[349903720,1737487845957,-500.0,0.00021917,3]
[349903721,1737487845966,-1064.12,0.00021917,3]
[349903724,1737487846042,-527.82818894,0.00021917,3]
[349903726,1737487846052,-500.0,0.00021917,3]
[349903728,1737487846062,-764.78,0.00021917,3]
[349903729,1737487846072,-503.5255657,0.00021917,3]
[349903730,1737487846081,-500.0,0.00021917,3]
[349903731,1737487846092,-500.0,0.00021917,3]
[349903732,1737487846101,-500.0,0.00021917,3]
[349903734,1737487846111,-500.0,0.00021917,3]
[349903735,1737487846121,-500.0,0.00021917,3]
[349903736,1737487846131,-500.0,0.00021917,3]
[349903737,1737487846141,-796.11,0.00021917,3]
[349903738,1737487846150,-661.77,0.00021917,3]
[349903739,1737487846160,-500.0,0.00021917,3]
[349903740,1737487846170,-500.0,0.00021917,3]
[349903741,1737487846181,-500.0,0.00021917,3]
[349903742,1737487846191,-500.0,0.00021917,3]
[349903743,1737487846201,-500.0,0.00021917,3]
[349903744,1737487846210,-500.45672638,0.00021917,3]
[349903745,1737487846220,-500.0,0.00021917,3]
[349903746,1737487846230,-792.28,0.00021917,3]
[349903747,1737487846240,-500.0,0.00021917,3]
[349903748,1737487846249,-668.74,0.00021917,3]
[349903749,1737487846259,-339.96657097,0.00021917,3]
[349903750,1737487846269,-108.71536333,0.00021917,3]
[349903763,1737487846469,-391.28463667,0.00021917,3]
[349903765,1737487846479,-502.25680278,0.00021917,3]
[349903767,1737487846488,-500.0,0.00021917,3]
[349903769,1737487846499,-255.64925741,0.00021917,3]
[349903771,1737487846509,-500.0,0.00021917,3]
[349903773,1737487846520,-500.0,0.00021918,3]
[349903775,1737487846532,-160.239696,0.00021946,2]
[349903777,1737487846542,-150.16057011,0.00021948,14]
[349903779,1737487846551,-500.0,0.00021948,14]
[349903781,1737487846560,-200.08,0.00021948,2]
[349903783,1737487846570,-500.0,0.00021948,14]
[349903785,1737487846579,-608.52932965,0.00021973,2]
[349903787,1737487846589,-250.21619049,0.00021973,2]
[349903789,1737487846598,-500.84150606,0.00021973,2]
[349903791,1737487846609,-500.0,0.00021973,2]
[349903793,1737487846618,-500.0,0.00021973,2]
[349903795,1737487846628,-500.0,0.00021973,2]
[349903797,1737487846637,-501.19233727,0.00021973,2]
[349903799,1737487846647,-500.0,0.00021973,2]
[349903801,1737487846656,-500.0,0.00021973,2]
[349903803,1737487846665,-467.53679151,0.00021973,2]
[349903805,1737487846676,-500.0,0.00021973,2]
[349903807,1737487846685,-500.0,0.00021973,2]
[349903809,1737487846694,-322.1354487,0.00021973,2]
[349903811,1737487846704,-163.98680599,0.00021973,2]
[349903813,1737487846714,-500.0,0.00021973,2]
[349903815,1737487846723,-500.0,0.00021973,2]
[349903817,1737487846733,-500.7706606,0.00021973,2]
[349903819,1737487846743,-308.94856532,0.00021973,2]
[349903821,1737487846752,-249.90123706,0.00021973,2]
[349903823,1737487846762,-284.22954522,0.00021973,2]
[349903825,1737487846772,-319.96931927,0.00021973,2]
[349903827,1737487846781,-501.41758325,0.00021973,2]
[349903829,1737487846791,-500.0,0.00021973,2]
[349903831,1737487846801,-400.82498513,0.00021973,2]
[349903833,1737487846811,-500.0,0.00021973,2]
[349903835,1737487846820,-500.0,0.00021973,2]
[349903837,1737487846830,-500.0,0.00021973,2]
[349903839,1737487846841,-500.0,0.00021973,2]
[349903841,1737487846850,-500.0,0.00021973,2]
[349903843,1737487846860,-316.352178,0.00021973,7]
[349903845,1737487846869,-316.352178,0.00021973,7]
[349903847,1737487846879,-270.020813,0.00021973,7]
[349903850,1737487846889,-270.020813,0.00021973,7]
[349903852,1737487846899,-555.70474699,0.0002198,2]
[349903854,1737487846908,-7588.0,0.00022,3]
[349903856,1737487846917,-905.81507744,0.00022,2]
[349903858,1737487846927,-11553.54358777,0.00022,2]
[349903860,1737487846939,-3413.10754809,0.00022,2]
[349903862,1737487846949,-3154.3198861,0.00022,7]
[349903864,1737487846959,-1000.0,0.00022,22]
[349903874,1737487847038,-156.98430157,0.00022,2]
[349903876,1737487847048,-500.0,0.00022054,3]
[349903878,1737487847057,-334.58293153,0.00022054,3]
[349903880,1737487847067,-500.0,0.00022054,2]
[349903882,1737487847076,-645.37996038,0.00022054,3]
[349903884,1737487847085,-204.84103073,0.00022054,3]
[349903886,1737487847095,-241.68516394,0.00022054,3]
[349903888,1737487847105,-503.12443125,0.00022054,3]
[349903890,1737487847114,-381.66559081,0.00022054,3]
[349903892,1737487847123,-500.0,0.00022054,3]
[349903894,1737487847133,-287.30061296,0.00022054,3]
[349903896,1737487847142,-294.98514241,0.00022054,3]
[349903898,1737487847151,-500.0,0.00022054,3]
[349903900,1737487847160,-500.0,0.00022054,3]
[349903902,1737487847170,-75.71717891,0.00022054,3]
[349903904,1737487847183,-424.28282109,0.00022054,3]
[349903906,1737487847191,-500.0,0.00022054,3]
[349903908,1737487847201,-500.0,0.00022054,3]
[349903910,1737487847210,-500.0,0.00022054,3]
[349903912,1737487847220,-132.71717891,0.00022054,3]
[349903915,1737487847232,-367.28282109,0.00022054,3]
[349903917,1737487847242,-500.0,0.00022054,3]
[349903919,1737487847251,-500.0,0.00022054,3]
[349903921,1737487847260,-500.0,0.00022054,3]
[349903922,1737487847270,-500.0,0.00022054,3]
[349903924,1737487847280,-500.0,0.00022054,3]
[349903926,1737487847289,-500.0,0.00022054,3]
[349903927,1737487847298,-500.0,0.00022054,3]
[349903929,1737487847308,-443.94820998,0.00022054,3]
[349903931,1737487847318,-527.15754,0.00022054,3]
[349903933,1737487847327,-500.0,0.00022054,3]
[349903935,1737487847336,-698.92,0.00022054,3]
[349903937,1737487847346,-501.89286954,0.00022054,3]
[349903938,1737487847355,-500.0,0.00022054,3]
[349903940,1737487847365,-500.0,0.00022054,3]
[349903942,1737487847374,-500.0,0.00022054,3]
[349903944,1737487847383,-500.0,0.00022054,3]
[349903946,1737487847393,-500.0,0.00022054,3]
[349903947,1737487847403,-508.75414529,0.00022054,3]
[349903949,1737487847414,-500.0,0.00022054,3]
[349903951,1737487847424,-500.0,0.00022054,3]
[349903953,1737487847434,-500.0,0.00022054,3]
[349903955,1737487847444,-500.0,0.00022054,3]
[349903957,1737487847454,-511.12507265,0.00022054,2]
[349903958,1737487847463,-500.0,0.00022054,3]
[349903960,1737487847473,-500.0,0.00022054,3]
[349903962,1737487847483,-500.0,0.00022054,3]
[349903964,1737487847492,-595.40103448,0.00022054,3]
[349903966,1737487847502,-501.42367297,0.00022054,3]
[349903967,1737487847511,-502.98718191,0.00022054,3]
[349903969,1737487847521,-615.05046383,0.00022054,3]
[349903971,1737487847534,-177.84436023,0.00022054,3]
[349904013,1737487848012,-8741.27405432,0.000219,3]
[349904020,1737487848085,-901.15,0.00021917,3]
[349904022,1737487848095,-159.028515,0.00021917,3]
[349904024,1737487848104,-8741.27405408,0.00022003,3]
[349904026,1737487848116,-322.15563977,0.00022054,3]
[349904028,1737487848125,-381.55894388,0.00022054,3]
[349904030,1737487848135,-502.18355107,0.00022054,3]
[349904032,1737487848145,-551.26274798,0.00022054,3]
[349904034,1737487848165,-500.0,0.00022054,3]
[349904036,1737487848177,-500.0,0.00022054,3]
[349904038,1737487848188,-500.0,0.00022054,3]
[349904040,1737487848199,-500.0,0.00022054,3]
[349904042,1737487848209,-500.0,0.00022054,3]
[349904044,1737487848220,-500.0,0.00022054,3]
[349904046,1737487848231,-506.37122853,0.00022054,3]
[349904048,1737487848242,-500.0,0.00022054,3]
[349904050,1737487848253,-500.0,0.00022054,3]
[349904052,1737487848263,-502.67081463,0.00022054,3]
[349904054,1737487848274,-403.56022862,0.00022054,3]
[349904056,1737487848286,-500.0,0.00022054,3]
[349904058,1737487848296,-500.0,0.00022054,3]
[349904060,1737487848306,-500.0,0.00022054,3]
[349904062,1737487848317,-188.354814,0.00022054,3]
[349904064,1737487848327,-500.0,0.00022054,3]
[349904065,1737487848338,-500.0,0.00022054,3]
[349904067,1737487848349,-500.0,0.00022054,3]
[349904069,1737487848359,-502.2425512,0.00022054,3]
[349904071,1737487848371,-200.0,0.00022054,3]
[349904073,1737487848382,-500.0,0.00022054,3]
[349904075,1737487848395,-500.0,0.00022054,3]
[349904077,1737487848406,-500.0,0.00022054,3]
[349904079,1737487848416,-500.0,0.00022054,3]
[349904081,1737487848428,-512.48312536,0.00022054,3]
[349904083,1737487848438,-500.0,0.00022054,3]
[349904085,1737487848448,-500.0,0.00022054,3]
[349904087,1737487848458,-500.0,0.00022054,3]
[349904089,1737487848467,-500.0,0.00022054,2]
[349904091,1737487848477,-500.0,0.00022054,3]
[349904093,1737487848486,-508.71720057,0.00022054,3]
[349904094,1737487848496,-616.83387992,0.00022054,3]
[349904096,1737487848506,-542.1,0.00022054,3]
[349904098,1737487848516,-500.0,0.00022054,3]
[349904100,1737487848529,-500.0,0.00022054,3]
[349904102,1737487848539,-500.0,0.00022054,3]
[349904104,1737487848550,-501.51069298,0.00022054,3]
[349904106,1737487848559,-500.0,0.00022054,3]
[349904108,1737487848569,-323.27832383,0.00022054,3]
[349904110,1737487848579,-500.0,0.00022054,3]
[349904111,1737487848589,-500.0,0.00022054,3]
[349904113,1737487848599,-502.36585703,0.00022054,3]
[349904115,1737487848609,-501.55790004,0.00022054,3]
[349904117,1737487848620,-505.09832519,0.00022054,3]
[349904119,1737487848630,-501.83115626,0.00022054,3]
[349904121,1737487848640,-500.0,0.00022054,3]
[349904123,1737487848649,-505.34153001,0.00022054,3]
[349904125,1737487848659,-466.93887757,0.00022054,3]
[349904127,1737487848669,-503.52192005,0.00022054,3]
[349904129,1737487848680,-500.0,0.00022054,3]
[349904131,1737487848692,-500.0,0.00022054,3]
[349904133,1737487848702,-500.0,0.00022054,3]
[349904134,1737487848712,-500.0,0.00022054,3]
[349904136,1737487848722,-504.27742,0.00022054,3]
[349904138,1737487848732,-510.64815815,0.00022054,3]
[349904140,1737487848742,-500.0,0.00022054,3]
[349904142,1737487848752,-500.0,0.00022054,3]
[349904144,1737487848761,-500.0,0.00022054,3]
[349904146,1737487848772,-500.0,0.00022054,3]
[349904148,1737487848781,-502.81781194,0.00022054,3]
[349904150,1737487848791,-500.0,0.00022054,3]
[349904152,1737487848801,-500.0,0.00022054,3]
[349904154,1737487848810,-500.0,0.00022054,3]
[349904155,1737487848819,-500.0,0.00022054,3]
[349904157,1737487848829,-500.0,0.00022054,3]
[349904159,1737487848838,-500.0,0.00022054,3]
[349904161,1737487848849,-500.0,0.00022054,3]
[349904163,1737487848858,-641.57266012,0.00022054,3]
[349904165,1737487848867,-501.73449202,0.00022054,3]
[349904167,1737487848877,-500.0,0.00022054,3]
[349904169,1737487848887,-500.0,0.00022054,3]
[349904171,1737487848896,-500.0,0.00022054,3]
[349904173,1737487848906,-500.0,0.00022054,3]
[349904175,1737487848915,-500.0,0.00022054,3]
[349904176,1737487848925,-500.0,0.00022054,3]
[349904178,1737487848938,-500.0,0.00022054,3]
[349904180,1737487848948,-500.0,0.00022054,3]
[349904182,1737487848959,-500.0,0.00022054,3]
[349904184,1737487848968,-500.0,0.00022054,3]
[349904186,1737487848978,-500.0,0.00022054,3]
[349904189,1737487848988,-500.0,0.00022054,3]
[349904191,1737487848999,-215.88078144,0.00022054,3]
[349904193,1737487849011,-500.0,0.00022054,3]
[349904195,1737487849022,-500.0,0.00022054,3]
[349904197,1737487849032,-500.0,0.00022054,3]
[349904199,1737487849041,-508.48741387,0.00022054,3]
[349904201,1737487849052,-500.0,0.00022054,3]
[349904202,1737487849062,-500.0,0.00022054,3]
[349904204,1737487849072,-500.0,0.00022054,3]
[349904207,1737487849083,-500.0,0.00022054,3]
[349904209,1737487849094,-500.0,0.00022054,3]
[349904211,1737487849105,-500.0,0.00022054,3]
[349904219,1737487849188,-182.23210648,0.00022054,3]
[349904222,1737487849199,-500.0,0.00022054,3]
[349904224,1737487849211,-500.0,0.00022054,3]
[349904226,1737487849221,-500.0,0.00022054,3]
[349904228,1737487849231,-500.0,0.00022054,3]
[349904230,1737487849242,-500.0,0.00022054,3]
[349904232,1737487849252,-500.0,0.00022054,3]
[349904234,1737487849262,-500.0,0.00022054,3]
[349904236,1737487849273,-500.0,0.00022054,3]
[349904238,1737487849283,-500.0,0.00022054,3]
[349904240,1737487849294,-500.0,0.00022054,3]
[349904242,1737487849304,-500.0,0.00022054,3]
[349904244,1737487849314,-500.0,0.00022054,3]
[349904245,1737487849323,-492.44840629,0.00022054,3]
[349904247,1737487849333,-500.0,0.00022054,3]
[349904249,1737487849343,-502.32766199,0.00022054,3]
[349904251,1737487849353,-502.85297769,0.00022054,3]
[349904253,1737487849363,-502.27763811,0.00022054,3]
[349904254,1737487849373,-500.0,0.00022054,3]
[349904255,1737487849383,-500.0,0.00022054,3]
[349904256,1737487849393,-500.0,0.00022054,3]
[349904257,1737487849402,-500.0,0.00022054,3]
[349904258,1737487849411,-216.726203,0.00022054,7]
[349904259,1737487849420,-216.726207,0.00022054,7]
[349904260,1737487849434,-500.0,0.00022054,3]
[349904261,1737487849445,-500.0,0.00022054,3]
[349904262,1737487849457,-501.30211315,0.00022054,3]
[349904263,1737487849467,-642.16,0.00022054,3]
[349904264,1737487849478,-500.0,0.00022054,3]
[349904265,1737487849488,-266.00557281,0.00022054,3]
[349904266,1737487849499,-500.0,0.00022054,3]
[349904267,1737487849509,-500.0,0.00022054,3]
[349904268,1737487849519,-500.0,0.00022054,3]
[349904269,1737487849530,-511.57505921,0.00022054,3]
[349904270,1737487849542,-404.10299019,0.00022054,3]
[349904271,1737487849560,-95.89700981,0.00022054,3]
[349904272,1737487849570,-500.0,0.00022054,3]
[349904273,1737487849582,-500.0,0.00022054,3]
[349904274,1737487849592,-782.94,0.00022054,3]
[349904275,1737487849602,-500.0,0.00022054,3]
[349904276,1737487849613,-500.0,0.00022054,3]
[349904277,1737487849623,-500.0,0.00022054,3]
[349904278,1737487849633,-548.12,0.00022054,3]
[349904279,1737487849644,-500.0,0.00022054,3]
[349904280,1737487849654,-500.0,0.00022054,3]
[349904282,1737487849668,-887.8,0.00022054,3]
[349904284,1737487849697,-500.0,0.00022054,3]
[349904287,1737487849715,-500.0,0.00022054,3]
[349904290,1737487849735,-500.0,0.00022054,3]
[349904293,1737487849760,-232.64378672,0.00022054,3]
[349904297,1737487849783,-267.35621328,0.00022054,3]
[349904300,1737487849802,-500.0,0.00022054,3]
[349904303,1737487849818,-500.0,0.00022054,3]
[349904305,1737487849835,-513.26878727,0.00022054,3]
[349904309,1737487849853,-205.84765641,0.00022054,3]
[349904352,1737487850259,-151.336188,0.000214,2]
[349904354,1737487850269,-294.15234359,0.00022054,3]
[349904356,1737487850279,-54.51146841,0.00022054,3]
[349904397,1737487850758,-151.0,0.000214,2]
[349904398,1737487850767,-124.94930143,0.000214,2]
[349904399,1737487850783,-26.05069857,0.000214,2]
[349904400,1737487850792,-225.31149674,0.00021917,2]
[349904401,1737487850802,-132.92819926,0.00022054,3]
[349904402,1737487851062,-151.0,0.0002159,2]
[349904403,1737487851071,-126.28315716,0.00021917,2]
[349904404,1737488035673,166.961059,0.0002,6]
[349904405,1737488043777,1638.41729678,0.0002,6]
[349904412,1737488541130,204.906564,0.00013973,2]
[349904477,1737489031902,-241.19626915,0.00018436,2]
[349904479,1737489031917,-11215.12073379,0.00018522,2]
[349904482,1737489031931,-241.19626915,0.00018622,2]
[349904484,1737489031944,-916.69444404,0.000189,2]
[349904486,1737489031958,-150.24548251,0.000189,2]
[349904489,1737489031971,-389.17078152,0.00019,2]
[349904491,1737489031984,-248.8028364,0.0001959,2]
[349904494,1737489031997,-216.548407,0.00019674,2]
[349904496,1737489032010,-166.9610606,0.00019693,2]
[349904498,1737489032023,-300.0,0.00019836,2]
[349904501,1737489032037,-6666.77040251,0.00019837,2]
[349904503,1737489032053,-18233.22959749,0.00019837,2]
[349904506,1737489032066,-204.906564,0.00020447,2]
[349904508,1737489032079,-500.0,0.00020625,2]
[349904511,1737489032092,-313.325,0.0002095,2]
[349904513,1737489032105,-157.0,0.00021328,2]
[349904515,1737489032118,-157.0,0.00021328,2]
[349904518,1737489032130,-154.0,0.00021328,2]
[349904520,1737489032143,-157.0,0.00021328,2]
[349904522,1737489032155,-154.0,0.00021328,2]
[349904525,1737489032167,-157.0,0.00021328,2]
[349904527,1737489032180,-154.0,0.00021328,2]
[349904530,1737489032192,-172.99278639,0.00021363,2]
[349904532,1737489032205,-536.0,0.00021463,2]
[349904534,1737489032219,-1496.671,0.00021463,2]
[349904537,1737489032232,-2306.0,0.00021463,2]
[349904539,1737489032245,-10220.23167428,0.00021464,2]
[349904540,1737489032257,-420.0,0.00021603,2]
[349904541,1737489032270,-354.0,0.0002161,7]
[349904542,1737489032283,-161.095,0.0002161,2]
[349904543,1737489032295,-157.0,0.00021627,2]
[349904544,1737489032308,-157.0,0.00021627,2]
[349904545,1737489032320,-154.0,0.00021627,2]
[349904546,1737489032332,-157.0,0.00021627,2]
[349904547,1737489032341,-157.0,0.00021627,2]
[349904548,1737489032351,-154.0,0.00021627,2]
[349904560,1737489032517,-157.0,0.00021627,2]
[349904563,1737489032558,-154.0,0.00021627,2]
[349904565,1737489032568,-157.0,0.00021627,2]
[349904568,1737489032578,-154.0,0.00021627,2]
[349904570,1737489032588,-157.0,0.00021627,2]
[349904571,1737489032598,-154.0,0.00021627,2]
[349904573,1737489032607,-157.0,0.00021627,2]
[349904575,1737489032617,-154.0,0.00021627,2]
[349904577,1737489032627,-157.0,0.00021627,2]
[349904579,1737489032636,-154.0,0.00021627,2]
[349904581,1737489032646,-154.0,0.00021627,2]
[349904583,1737489032656,-157.0,0.00021627,2]
[349904585,1737489032666,-154.0,0.00021627,2]
[349904587,1737489032675,-157.0,0.00021627,2]
[349904589,1737489032685,-154.0,0.00021627,2]
[349904591,1737489032694,-157.0,0.00021627,2]
[349904593,1737489032704,-154.0,0.00021627,2]
[349904595,1737489032715,-157.0,0.00021627,2]
[349904597,1737489032724,-157.0,0.00021627,2]
[349904599,1737489032734,-154.0,0.00021627,2]
[349904601,1737489032744,-154.0,0.00021627,2]
[349904603,1737489032753,-10220.23167428,0.00021649,2]
[349904606,1737489032764,-199.6996286,0.00021833,2]
[349904608,1737489032773,-1820.44574479,0.00021849,2]
[349904610,1737489032784,-992.09,0.000219,2]
[349904612,1737489032794,-8173.6031646,0.000219,3]
[349904614,1737489032804,-291.82821101,0.00021903,2]
[349904616,1737489032814,-500.0,0.00021916,2]
[349904618,1737489032823,-500.0,0.00021916,2]
[349904620,1737489032833,-500.0,0.00021916,2]
[349904622,1737489032842,-500.0,0.00021916,2]
[349904624,1737489032852,-500.0,0.00021916,2]
[349904626,1737489032862,-500.0,0.00021916,2]
[349904628,1737489032872,-500.0,0.00021916,2]
[349904630,1737489032884,-500.0,0.00021916,2]
[349904632,1737489032894,-500.0,0.00021916,2]
[349904634,1737489032903,-500.0,0.00021916,2]
[349904636,1737489032912,-514.70299528,0.00021916,2]
[349904637,1737489032923,-500.0,0.00021916,2]
[349904640,1737489032933,-500.0,0.00021916,2]
[349904642,1737489032943,-517.73457436,0.00021916,2]
[349904644,1737489032954,-500.0,0.00021916,2]
[349904646,1737489032965,-500.0,0.00021916,2]
[349904648,1737489032974,-500.0,0.00021916,2]
[349904650,1737489032984,-500.0,0.00021916,2]
[349904652,1737489032994,-500.0,0.00021916,2]
[349904654,1737489033004,-500.0,0.00021916,2]
[349904656,1737489033015,-500.0,0.00021916,2]
[349904658,1737489033024,-340.57615088,0.00021916,2]
[349904660,1737489033034,-500.0,0.00021916,2]
[349904662,1737489033044,-424.33008585,0.00021916,2]
[349904664,1737489033053,-616.79347374,0.00021916,2]
[349904666,1737489033063,-500.0,0.00021916,2]
[349904668,1737489033073,-500.0,0.00021916,2]
[349904670,1737489033083,-500.0,0.00021916,2]
[349904673,1737489033094,-500.0,0.00021916,2]
[349904674,1737489033103,-500.0,0.00021916,2]
[349904676,1737489033113,-500.0,0.00021916,2]
[349904679,1737489033123,-500.0,0.00021916,2]
[349904680,1737489033132,-500.0,0.00021916,2]
[349904683,1737489033142,-500.0,0.00021916,2]
[349904685,1737489033152,-500.0,0.00021916,2]
[349904687,1737489033162,-500.0,0.00021916,2]
[349904689,1737489033173,-500.0,0.00021916,2]
[349904691,1737489033183,-500.0,0.00021916,2]
[349904693,1737489033194,-415.12428558,0.00021916,2]
[349904695,1737489033204,-500.0,0.00021916,2]
[349904697,1737489033215,-500.0,0.00021916,2]
[349904699,1737489033225,-500.0,0.00021916,2]
[349904701,1737489033236,-500.0,0.00021916,2]
[349904703,1737489033246,-500.0,0.00021916,2]
[349904705,1737489033256,-384.14,0.00021916,2]
[349904707,1737489033266,-500.0,0.00021916,2]
[349904709,1737489033276,-500.0,0.00021916,2]
[349904711,1737489033286,-500.0,0.00021916,2]
[349904713,1737489033296,-500.0,0.00021916,2]
[349904715,1737489033306,-500.0,0.00021916,2]
[349904717,1737489033316,-500.0,0.00021916,2]
[349904719,1737489033326,-500.0,0.00021916,2]
[349904721,1737489033336,-500.0,0.00021916,2]
[349904723,1737489033345,-500.0,0.00021916,2]
[349904725,1737489033356,-196.5938028,0.00021916,2]
[349904727,1737489033365,-500.0,0.00021916,2]
[349904729,1737489033375,-268.68047174,0.00021916,2]
[349904731,1737489033385,-500.0,0.00021916,2]
[349904733,1737489033395,-500.0,0.00021916,2]
[349904735,1737489033405,-500.0,0.00021916,2]
[349904737,1737489033415,-500.0,0.00021916,2]
[349904739,1737489033425,-500.0,0.00021916,2]
[349904741,1737489033435,-500.0,0.00021916,2]
[349904743,1737489033444,-500.0,0.00021916,2]
[349904745,1737489033455,-500.0,0.00021916,2]
[349904747,1737489033466,-500.0,0.00021916,2]
[349904749,1737489033477,-500.0,0.00021916,2]
[349904752,1737489033487,-500.0,0.00021916,2]
[349904754,1737489033497,-500.0,0.00021916,2]
[349904755,1737489033507,-500.0,0.00021916,2]
[349904757,1737489033516,-500.0,0.00021916,2]
[349904759,1737489033526,-500.0,0.00021916,2]
[349904761,1737489033535,-500.0,0.00021916,2]
[349904764,1737489033545,-500.0,0.00021916,2]
[349904766,1737489033555,-500.0,0.00021916,2]
[349904767,1737489033565,-500.0,0.00021916,2]
[349904769,1737489033575,-500.0,0.00021916,2]
[349904772,1737489033584,-500.0,0.00021916,2]
[349904774,1737489033594,-500.0,0.00021916,2]
[349904776,1737489033605,-500.0,0.00021916,2]
[349904778,1737489033615,-500.0,0.00021916,2]
[349904780,1737489033624,-500.0,0.00021916,2]
[349904781,1737489033634,-500.0,0.00021916,2]
[349904783,1737489033643,-171.95436764,0.00021916,2]
[349904785,1737489033653,-500.0,0.00021916,2]
[349904787,1737489033662,-500.0,0.00021916,2]
[349904789,1737489033671,-500.0,0.00021916,2]
[349904791,1737489033681,-500.0,0.00021916,2]
[349904793,1737489033690,-500.0,0.00021916,2]
[349904795,1737489033700,-500.0,0.00021916,2]
[349904797,1737489033710,-500.0,0.00021916,2]
[349904799,1737489033719,-591.51242855,0.00021916,2]
[349904801,1737489033728,-500.0,0.00021916,2]
[349904803,1737489033738,-500.0,0.00021916,2]
[349904805,1737489033748,-481.30677896,0.00021916,2]
[349904807,1737489033759,-550.79922729,0.00021916,2]
[349904809,1737489033769,-500.0,0.00021916,2]
[349904811,1737489033778,-500.0,0.00021916,2]
[349904814,1737489033788,-500.0,0.00021916,2]
[349904816,1737489033798,-500.0,0.00021916,2]
[349904817,1737489033807,-500.0,0.00021917,2]
[349904820,1737489033817,-500.0,0.00021917,3]
[349904822,1737489033826,-500.0,0.00021917,3]
[349904824,1737489033836,-500.66982686,0.00021917,3]
[349904826,1737489033845,-500.0,0.00021917,3]
[349904828,1737489033854,-500.0,0.00021917,3]
[349904830,1737489033865,-500.0,0.00021917,3]
[349904832,1737489033877,-168.88708139,0.00021917,3]